[Event "*** SCC Grand Prix: Titled Tuesday Blitz"]
[Site "Chess.com"]
[Date "2020.10.06"]
[Round "10"]
[White "FMalexhdez"]
[Black "DonBroca"]
[Result "1-0"]
[WhiteElo "2254"]
[BlackElo "2162"]
[TimeControl "180+1"]
[EndTime "11:54:18 PDT"]
[Termination "FMalexhdez won by resignation"]

1. e4 {[%clk 0:03:00.9]} 1... c5 {[%clk 0:02:59.7]} 2. Nf3 {[%clk 0:03:01.1]}
2... d6 {[%clk 0:02:59.8]} 3. d4 {[%clk 0:03:01.8]} 3... cxd4 {[%clk 0:03:00.7]}
4. Nxd4 {[%clk 0:03:02.2]} 4... Nf6 {[%clk 0:03:01.2]} 5. Nc3 {[%clk 0:03:01.3]}
5... g6 {[%clk 0:03:01.5]} 6. Be2 {[%clk 0:03:01.2]} 6... Bg7 {[%clk 0:03:01.5]}
7. O-O {[%clk 0:03:01.7]} 7... O-O {[%clk 0:03:00.8]} 8. Nb3 {[%clk 0:03:02.1]}
8... Nc6 {[%clk 0:03:00.7]} 9. Re1 {[%clk 0:03:02.7]} 9... Bd7 {[%clk
0:02:59.9]} 10. Bf1 {[%clk 0:03:03.2]} 10... Rc8 {[%clk 0:02:59.9]} 11. Nd5
{[%clk 0:03:03.1]} 11... a6 {[%clk 0:02:50.5]} 12. Bg5 {[%clk 0:03:01.7]} 12...
Be6 {[%clk 0:02:34.6]} 13. Nxf6+ {[%clk 0:02:48.8]} 13... exf6 {[%clk
0:02:35.5]} 14. Be3 {[%clk 0:02:41.7]} 14... f5 {[%clk 0:02:27.1]} 15. exf5
{[%clk 0:02:39.3]} 15... Bxf5 {[%clk 0:02:28]} 16. c3 {[%clk 0:02:36.4]} 16...
Qd7 {[%clk 0:02:24.1]} 17. Nd4 {[%clk 0:02:35]} 17... Nxd4 {[%clk 0:02:20.6]}
18. Bxd4 {[%clk 0:02:34.9]} 18... Bxd4 {[%clk 0:02:20.4]} 19. Qxd4 {[%clk
0:02:34.9]} 19... Rfe8 {[%clk 0:02:14.5]} 20. Rxe8+ {[%clk 0:02:31]} 20... Rxe8
{[%clk 0:02:15.4]} 21. Rd1 {[%clk 0:02:29.7]} 21... Rd8 {[%clk 0:01:43.4]} 22.
g3 {[%clk 0:02:26.7]} 22... Qe6 {[%clk 0:01:24.3]} 23. Bg2 {[%clk 0:02:23.4]}
23... Rd7 {[%clk 0:01:24.1]} 24. h4 {[%clk 0:02:19.5]} 24... f6 {[%clk
0:01:07.1]} 25. Bd5 {[%clk 0:02:18.6]} 1-0

[Event "*** SCC Grand Prix: Titled Tuesday Blitz"]
[Site "Chess.com"]
[Date "2020.10.06"]
[Round "10"]
[White "MarceloPlaya"]
[Black "Ladislav1969"]
[Result "1-0"]
[WhiteElo "2269"]
[BlackElo "2338"]
[TimeControl "180+1"]
[EndTime "11:54:27 PDT"]
[Termination "MarceloPlaya won by resignation"]

1. e4 {[%clk 0:03:00.9]} 1... c5 {[%clk 0:03:00.1]} 2. Nf3 {[%clk 0:02:59.7]}
2... e6 {[%clk 0:03:01]} 3. d4 {[%clk 0:02:59.1]} 3... cxd4 {[%clk 0:03:01.9]}
4. Nxd4 {[%clk 0:02:59.1]} 4... a6 {[%clk 0:03:02.8]} 5. Nc3 {[%clk 0:02:58]}
5... b5 {[%clk 0:03:02.2]} 6. Be3 {[%clk 0:02:57.3]} 6... Bb7 {[%clk 0:03:02.1]}
7. f3 {[%clk 0:02:56.7]} 7... Nc6 {[%clk 0:02:58.6]} 8. Qd2 {[%clk 0:02:56.5]}
8... Nf6 {[%clk 0:02:49.9]} 9. O-O-O {[%clk 0:02:55.5]} 9... Qa5 {[%clk
0:02:44.1]} 10. Kb1 {[%clk 0:02:53.8]} 10... Bb4 {[%clk 0:02:35.1]} 11. Nde2
{[%clk 0:02:52.4]} 11... d5 {[%clk 0:02:30.8]} 12. Bg5 {[%clk 0:02:45.3]} 12...
dxe4 {[%clk 0:02:24.5]} 13. Bxf6 {[%clk 0:02:44]} 13... gxf6 {[%clk 0:02:23]}
14. Qd7+ {[%clk 0:02:41.2]} 14... Kf8 {[%clk 0:02:20.6]} 15. Qxb7 {[%clk
0:02:40.4]} 15... Kg7 {[%clk 0:01:21]} 16. Qxc6 {[%clk 0:02:35.9]} 16... Rac8
{[%clk 0:01:18.6]} 17. Qxe4 {[%clk 0:02:33.1]} 17... Bxc3 {[%clk 0:01:18.6]} 18.
Nxc3 {[%clk 0:02:31]} 18... Rxc3 {[%clk 0:01:18.3]} 19. bxc3 {[%clk 0:02:29.3]}
19... Qxc3 {[%clk 0:01:18.4]} 20. Qd4 {[%clk 0:02:26.8]} 20... Qa3 {[%clk
0:01:11.9]} 21. Bd3 {[%clk 0:02:24.8]} 21... Rc8 {[%clk 0:00:56.7]} 22. Qb2
{[%clk 0:02:23.4]} 1-0

[Event "*** SCC Grand Prix: Titled Tuesday Blitz"]
[Site "Chess.com"]
[Date "2020.10.06"]
[Round "10"]
[White "nochewycandy"]
[Black "dosto07"]
[Result "1-0"]
[WhiteElo "2475"]
[BlackElo "2338"]
[TimeControl "180+1"]
[EndTime "11:54:29 PDT"]
[Termination "nochewycandy won by checkmate"]

1. e4 {[%clk 0:03:00.9]} 1... e5 {[%clk 0:02:59.3]} 2. Nc3 {[%clk 0:03:00.3]}
2... Nf6 {[%clk 0:02:58.3]} 3. f4 {[%clk 0:03:00]} 3... d5 {[%clk 0:02:58.3]} 4.
fxe5 {[%clk 0:03:00.5]} 4... Nxe4 {[%clk 0:02:58.3]} 5. Qf3 {[%clk 0:03:01.1]}
5... f5 {[%clk 0:02:56.7]} 6. d3 {[%clk 0:03:00.4]} 6... Nxc3 {[%clk 0:02:56.5]}
7. bxc3 {[%clk 0:03:01.3]} 7... d4 {[%clk 0:02:56.5]} 8. Qf4 {[%clk 0:03:01.2]}
8... Nc6 {[%clk 0:02:50.4]} 9. Nf3 {[%clk 0:02:59.9]} 9... dxc3 {[%clk
0:02:50.1]} 10. Qc4 {[%clk 0:02:59.5]} 10... Qe7 {[%clk 0:02:04.7]} 11. d4
{[%clk 0:02:55.2]} 11... Bd7 {[%clk 0:01:35]} 12. Bg5 {[%clk 0:02:48.7]} 12...
Qf7 {[%clk 0:01:33.2]} 13. d5 {[%clk 0:02:47.5]} 13... Nb4 {[%clk 0:01:28]} 14.
e6 {[%clk 0:02:41.7]} 14... Bxe6 {[%clk 0:01:21.3]} 15. dxe6 {[%clk 0:02:40.9]}
15... Qg6 {[%clk 0:01:17.9]} 16. O-O-O {[%clk 0:02:29.6]} 16... Bd6 {[%clk
0:01:10.3]} 17. Rxd6 {[%clk 0:02:25.2]} 17... cxd6 {[%clk 0:01:06.9]} 18. Qxb4
{[%clk 0:02:20.8]} 18... O-O {[%clk 0:01:06.7]} 19. Bc4 {[%clk 0:02:18]} 19...
Kh8 {[%clk 0:01:05.5]} 20. Qxc3 {[%clk 0:02:11.5]} 20... h6 {[%clk 0:01:04.3]}
21. Bf4 {[%clk 0:02:03.1]} 21... Qxg2 {[%clk 0:01:04]} 22. Rg1 {[%clk
0:02:02.7]} 22... Qf2 {[%clk 0:01:04]} 23. Qxg7# {[%clk 0:02:01.9]} 1-0

[Event "*** SCC Grand Prix: Titled Tuesday Blitz"]
[Site "Chess.com"]
[Date "2020.10.06"]
[Round "10"]
[White "Alexander_Donchenko"]
[Black "Mikhail_Golubev"]
[Result "1-0"]
[WhiteElo "2768"]
[BlackElo "2535"]
[TimeControl "180+1"]
[EndTime "11:54:48 PDT"]
[Termination "Alexander_Donchenko won by resignation"]

1. Nf3 {[%clk 0:03:00.9]} 1... d6 {[%clk 0:02:58.9]} 2. d4 {[%clk 0:03:00.7]}
2... Nf6 {[%clk 0:02:59]} 3. g3 {[%clk 0:03:01.3]} 3... g6 {[%clk 0:02:58.7]} 4.
Bg2 {[%clk 0:03:01.9]} 4... Bg7 {[%clk 0:02:59.3]} 5. O-O {[%clk 0:03:02.8]}
5... O-O {[%clk 0:02:59.7]} 6. b3 {[%clk 0:03:03.6]} 6... c5 {[%clk 0:02:53.5]}
7. c4 {[%clk 0:03:03.6]} 7... Nc6 {[%clk 0:02:46.5]} 8. Bb2 {[%clk 0:03:03.8]}
8... cxd4 {[%clk 0:02:46]} 9. Nxd4 {[%clk 0:03:04.7]} 9... Bd7 {[%clk
0:02:46.3]} 10. Nc2 {[%clk 0:03:04.5]} 10... a6 {[%clk 0:02:43.1]} 11. Nc3
{[%clk 0:03:04.5]} 11... Rc8 {[%clk 0:02:38.6]} 12. Qd2 {[%clk 0:03:04.1]} 12...
Re8 {[%clk 0:02:35.3]} 13. Rfd1 {[%clk 0:03:03.6]} 13... h5 {[%clk 0:02:29.5]}
14. h3 {[%clk 0:03:01.2]} 14... Be6 {[%clk 0:02:11.2]} 15. Rac1 {[%clk
0:02:53.8]} 15... Qd7 {[%clk 0:02:08.9]} 16. Nd5 {[%clk 0:02:50.3]} 16... Nxd5
{[%clk 0:01:51.2]} 17. Bxg7 {[%clk 0:02:49.4]} 17... Nf4 {[%clk 0:01:39.8]} 18.
Ba1 {[%clk 0:02:34.8]} 18... Bxh3 {[%clk 0:01:32.4]} 19. Qxf4 {[%clk 0:02:32.6]}
19... Bxg2 {[%clk 0:01:22.4]} 20. Kxg2 {[%clk 0:02:33.5]} 20... f6 {[%clk
0:00:50.3]} 21. Ne3 {[%clk 0:02:30.4]} 21... Kf7 {[%clk 0:00:46]} 22. Nd5 {[%clk
0:02:28.3]} 22... g5 {[%clk 0:00:43.6]} 23. Qe4 {[%clk 0:02:25.7]} 23... Rh8
{[%clk 0:00:42.5]} 24. Nb6 {[%clk 0:02:22.5]} 24... Qh3+ {[%clk 0:00:34.2]} 25.
Kxh3 {[%clk 0:02:21.8]} 1-0

[Event "*** SCC Grand Prix: Titled Tuesday Blitz"]
[Site "Chess.com"]
[Date "2020.10.06"]
[Round "10"]
[White "Igor_Bitensky"]
[Black "catzapto"]
[Result "1-0"]
[WhiteElo "2315"]
[BlackElo "2154"]
[TimeControl "180+1"]
[EndTime "11:54:54 PDT"]
[Termination "Igor_Bitensky won by checkmate"]

1. e4 {[%clk 0:03:00.9]} 1... c5 {[%clk 0:03:00.2]} 2. Na3 {[%clk 0:02:59.5]}
2... e6 {[%clk 0:03:00.2]} 3. c3 {[%clk 0:02:59.5]} 3... d5 {[%clk 0:02:59.6]}
4. e5 {[%clk 0:02:57.6]} 4... d4 {[%clk 0:02:58.8]} 5. Nf3 {[%clk 0:02:50.3]}
5... Nc6 {[%clk 0:02:55.9]} 6. Bb5 {[%clk 0:02:49.5]} 6... Bd7 {[%clk
0:02:56.3]} 7. O-O {[%clk 0:02:45.3]} 7... a6 {[%clk 0:02:56.8]} 8. Bxc6 {[%clk
0:02:37.7]} 8... Bxc6 {[%clk 0:02:57]} 9. cxd4 {[%clk 0:02:38.4]} 9... cxd4
{[%clk 0:02:57.8]} 10. d3 {[%clk 0:02:38.8]} 10... Bxa3 {[%clk 0:02:57.2]} 11.
bxa3 {[%clk 0:02:38]} 11... Ne7 {[%clk 0:02:57.8]} 12. Re1 {[%clk 0:02:20.5]}
12... h6 {[%clk 0:02:55.6]} 13. Bd2 {[%clk 0:02:08.8]} 13... g5 {[%clk
0:02:52.5]} 14. Bb4 {[%clk 0:02:01.5]} 14... Qd5 {[%clk 0:02:52.5]} 15. Re4
{[%clk 0:01:53.1]} 15... Qd7 {[%clk 0:02:40]} 16. Rxd4 {[%clk 0:01:38.2]} 16...
Bxf3 {[%clk 0:02:40]} 17. Rxd7 {[%clk 0:01:37.3]} 17... Bxd1 {[%clk 0:02:39.7]}
18. Rxe7+ {[%clk 0:01:37.2]} 18... Kd8 {[%clk 0:02:40.2]} 19. Rxd1 {[%clk
0:01:36.6]} 19... a5 {[%clk 0:02:40.7]} 20. Bd6 {[%clk 0:01:35.2]} 20... Rc8
{[%clk 0:02:33.1]} 21. Rb1 {[%clk 0:01:30.6]} 21... Rf8 {[%clk 0:02:28.4]} 22.
g4 {[%clk 0:01:28.1]} 22... f6 {[%clk 0:02:28.5]} 23. Rbxb7 {[%clk 0:01:23.1]}
23... Rc1+ {[%clk 0:02:24.8]} 24. Kg2 {[%clk 0:01:21.3]} 24... fxe5 {[%clk
0:02:19.6]} 25. Red7+ {[%clk 0:01:06.6]} 25... Ke8 {[%clk 0:02:19.8]} 26. Bxf8
{[%clk 0:00:58]} 26... h5 {[%clk 0:02:20.3]} 27. Bd6 {[%clk 0:00:51.8]} 27...
hxg4 {[%clk 0:02:17.5]} 28. Rh7 {[%clk 0:00:51.3]} 28... Rc8 {[%clk 0:02:12.8]}
29. Rh8# {[%clk 0:00:50.3]} 1-0

[Event "*** SCC Grand Prix: Titled Tuesday Blitz"]
[Site "Chess.com"]
[Date "2020.10.06"]
[Round "10"]
[White "AlexSuv"]
[Black "Gabrielian_Artur"]
[Result "0-1"]
[WhiteElo "2499"]
[BlackElo "2731"]
[TimeControl "180+1"]
[EndTime "11:55:01 PDT"]
[Termination "Gabrielian_Artur won by resignation"]

1. d4 {[%clk 0:02:57.4]} 1... Nf6 {[%clk 0:02:59.2]} 2. c4 {[%clk 0:02:57.5]}
2... c5 {[%clk 0:02:59.6]} 3. d5 {[%clk 0:02:57.5]} 3... e6 {[%clk 0:03:00.2]}
4. Nc3 {[%clk 0:02:57.2]} 4... exd5 {[%clk 0:03:00.8]} 5. cxd5 {[%clk
0:02:58.1]} 5... d6 {[%clk 0:03:01.5]} 6. Nf3 {[%clk 0:02:56.1]} 6... g6 {[%clk
0:03:01.9]} 7. Bf4 {[%clk 0:02:56.7]} 7... Bg7 {[%clk 0:03:01.9]} 8. h3 {[%clk
0:02:55.6]} 8... O-O {[%clk 0:03:01.6]} 9. e3 {[%clk 0:02:56.2]} 9... Re8 {[%clk
0:03:01.7]} 10. Be2 {[%clk 0:02:55.5]} 10... Ne4 {[%clk 0:03:01.1]} 11. Nxe4
{[%clk 0:02:51.1]} 11... Rxe4 {[%clk 0:03:00.9]} 12. O-O {[%clk 0:02:51.7]}
12... Bxb2 {[%clk 0:02:54.5]} 13. Rb1 {[%clk 0:02:40.2]} 13... Bg7 {[%clk
0:02:53.9]} 14. Qc2 {[%clk 0:02:31]} 14... Re8 {[%clk 0:02:49.7]} 15. Bb5 {[%clk
0:02:30.1]} 15... Bf5 {[%clk 0:02:43.3]} 16. Bd3 {[%clk 0:02:25.7]} 16... Bxd3
{[%clk 0:02:41.7]} 17. Qxd3 {[%clk 0:02:26.6]} 17... b6 {[%clk 0:02:37.4]} 18.
Qb5 {[%clk 0:02:21.6]} 18... Qd7 {[%clk 0:02:33.3]} 19. Qxd7 {[%clk 0:02:20.7]}
19... Nxd7 {[%clk 0:02:32.7]} 20. Bxd6 {[%clk 0:02:21.4]} 20... Nf6 {[%clk
0:02:32.2]} 21. Rfd1 {[%clk 0:01:35]} 21... Rad8 {[%clk 0:02:21.1]} 22. Bc7
{[%clk 0:01:35.3]} 22... Rxd5 {[%clk 0:02:19.5]} 23. a4 {[%clk 0:01:35.8]} 23...
Rc8 {[%clk 0:02:13.4]} 24. Bg3 {[%clk 0:01:33.1]} 24... c4 {[%clk 0:02:06.8]}
25. Be5 {[%clk 0:01:31.7]} 25... Rxd1+ {[%clk 0:02:03.5]} 26. Rxd1 {[%clk
0:01:32.6]} 26... Ne4 {[%clk 0:02:03.6]} 27. Bxg7 {[%clk 0:01:29.6]} 27... Kxg7
{[%clk 0:02:03.5]} 28. Nd4 {[%clk 0:01:30]} 28... c3 {[%clk 0:01:55.4]} 29. f3
{[%clk 0:01:30]} 29... Nc5 {[%clk 0:01:53]} 30. Ra1 {[%clk 0:01:28.5]} 30... Nd3
{[%clk 0:01:45.8]} 31. Nc2 {[%clk 0:01:27.5]} 31... a5 {[%clk 0:01:44.6]} 32.
Ra3 {[%clk 0:01:23.2]} 32... Nb4 {[%clk 0:01:43.6]} 0-1

[Event "*** SCC Grand Prix: Titled Tuesday Blitz"]
[Site "Chess.com"]
[Date "2020.10.06"]
[Round "10"]
[White "profofchess"]
[Black "MoreChessJulia"]
[Result "1-0"]
[WhiteElo "2369"]
[BlackElo "1987"]
[TimeControl "180+1"]
[EndTime "11:55:01 PDT"]
[Termination "profofchess won by resignation"]

1. e4 {[%clk 0:03:00.9]} 1... c5 {[%clk 0:02:56.4]} 2. Nc3 {[%clk 0:03:01.8]}
2... Nc6 {[%clk 0:02:55.9]} 3. g3 {[%clk 0:03:02.7]} 3... g6 {[%clk 0:02:55.4]}
4. Bg2 {[%clk 0:03:03.3]} 4... Bg7 {[%clk 0:02:55.6]} 5. d3 {[%clk 0:03:03.8]}
5... d6 {[%clk 0:02:55.6]} 6. Be3 {[%clk 0:03:04.1]} 6... h5 {[%clk 0:02:55.3]}
7. h3 {[%clk 0:03:03.2]} 7... h4 {[%clk 0:02:54.5]} 8. g4 {[%clk 0:03:03.2]}
8... e6 {[%clk 0:02:52.7]} 9. Qd2 {[%clk 0:03:03.2]} 9... Nge7 {[%clk
0:02:51.7]} 10. Nge2 {[%clk 0:03:02.4]} 10... Nd4 {[%clk 0:02:49.3]} 11. f4
{[%clk 0:02:48.5]} 11... f5 {[%clk 0:02:45]} 12. exf5 {[%clk 0:02:39.4]} 12...
exf5 {[%clk 0:02:39.6]} 13. g5 {[%clk 0:02:38.9]} 13... Qc7 {[%clk 0:02:32.3]}
14. O-O {[%clk 0:02:38.1]} 14... Bd7 {[%clk 0:02:30.9]} 15. Nd5 {[%clk
0:02:08.1]} 15... Nxd5 {[%clk 0:02:30.1]} 16. Bxd5 {[%clk 0:02:09]} 16... O-O-O
{[%clk 0:02:29.3]} 17. c3 {[%clk 0:02:04.2]} 17... Nxe2+ {[%clk 0:02:18.8]} 18.
Qxe2 {[%clk 0:02:05.1]} 18... Rde8 {[%clk 0:02:18]} 19. Rae1 {[%clk 0:02:04.7]}
19... Kb8 {[%clk 0:02:08.1]} 20. Qf3 {[%clk 0:02:02.7]} 20... Re7 {[%clk
0:01:58]} 21. Bf2 {[%clk 0:02:02.4]} 21... Bb5 {[%clk 0:01:42.1]} 22. Rxe7
{[%clk 0:01:55.8]} 22... Qxe7 {[%clk 0:01:39.1]} 23. Re1 {[%clk 0:01:55.9]}
23... Qc7 {[%clk 0:01:34.6]} 24. Re6 {[%clk 0:01:52.2]} 24... Be8 {[%clk
0:01:33.5]} 25. Qe2 {[%clk 0:01:45.3]} 25... Bc6 {[%clk 0:01:18.6]} 26. Re7
{[%clk 0:01:43.8]} 26... Bxd5 {[%clk 0:01:10.8]} 27. Rxc7 {[%clk 0:01:43.3]}
27... Kxc7 {[%clk 0:01:10.6]} 28. Qe7+ {[%clk 0:01:43.3]} 1-0

[Event "*** SCC Grand Prix: Titled Tuesday Blitz"]
[Site "Chess.com"]
[Date "2020.10.06"]
[Round "10"]
[White "Chessdreamer2020"]
[Black "Denis_Makhnyov"]
[Result "1-0"]
[WhiteElo "2478"]
[BlackElo "2825"]
[TimeControl "180+1"]
[EndTime "11:55:30 PDT"]
[Termination "Chessdreamer2020 won by resignation"]

1. e4 {[%clk 0:03:00.9]} 1... Nf6 {[%clk 0:02:57.2]} 2. Nc3 {[%clk 0:02:59.9]}
2... e5 {[%clk 0:02:56.1]} 3. Nf3 {[%clk 0:02:53.3]} 3... Nc6 {[%clk 0:02:55.8]}
4. d4 {[%clk 0:02:53.5]} 4... exd4 {[%clk 0:02:55.5]} 5. Nxd4 {[%clk 0:02:53.9]}
5... Bb4 {[%clk 0:02:54.2]} 6. Nxc6 {[%clk 0:02:53.6]} 6... bxc6 {[%clk
0:02:54.3]} 7. Bd3 {[%clk 0:02:54]} 7... O-O {[%clk 0:02:52.1]} 8. O-O {[%clk
0:02:54.5]} 8... d5 {[%clk 0:02:52.1]} 9. exd5 {[%clk 0:02:55]} 9... cxd5 {[%clk
0:02:51.6]} 10. h3 {[%clk 0:02:55.5]} 10... c6 {[%clk 0:02:51.5]} 11. Qf3 {[%clk
0:02:55.1]} 11... Rb8 {[%clk 0:02:49.6]} 12. Bg5 {[%clk 0:02:50.5]} 12... Be7
{[%clk 0:02:43.9]} 13. b3 {[%clk 0:02:48.9]} 13... h6 {[%clk 0:02:42]} 14. Bxh6
{[%clk 0:02:46]} 14... gxh6 {[%clk 0:02:28.3]} 15. Qg3+ {[%clk 0:02:45.8]} 15...
Bg4 {[%clk 0:02:28.1]} 16. hxg4 {[%clk 0:02:43.6]} 16... Bd6 {[%clk 0:02:27.5]}
17. Qh4 {[%clk 0:02:42]} 17... Kg7 {[%clk 0:02:22.2]} 18. Ne2 {[%clk 0:02:39.2]}
18... Nd7 {[%clk 0:02:05.3]} 19. Qh5 {[%clk 0:02:30.8]} 19... Be5 {[%clk
0:01:49.9]} 20. Rad1 {[%clk 0:02:26.9]} 20... Qg5 {[%clk 0:01:48.2]} 21. Qh3
{[%clk 0:02:22.1]} 21... Qe7 {[%clk 0:01:31.4]} 22. f4 {[%clk 0:02:18.6]} 22...
Qc5+ {[%clk 0:01:31]} 23. Kh1 {[%clk 0:02:16]} 23... Bc7 {[%clk 0:01:23.9]} 24.
Ng3 {[%clk 0:02:01.4]} 24... Rh8 {[%clk 0:01:21.8]} 25. Nh5+ {[%clk 0:01:48.7]}
25... Kf8 {[%clk 0:01:18.7]} 26. Rde1 {[%clk 0:01:32.1]} 26... Re8 {[%clk
0:01:15.9]} 27. Rxe8+ {[%clk 0:01:29.8]} 27... Kxe8 {[%clk 0:01:15.6]} 28. Qh4
{[%clk 0:01:25.7]} 28... Qe7 {[%clk 0:01:10.3]} 29. Re1 {[%clk 0:01:24]} 1-0

[Event "*** SCC Grand Prix: Titled Tuesday Blitz"]
[Site "Chess.com"]
[Date "2020.10.06"]
[Round "10"]
[White "icychess54"]
[Black "Inga83"]
[Result "1-0"]
[WhiteElo "2284"]
[BlackElo "2408"]
[TimeControl "180+1"]
[EndTime "11:55:46 PDT"]
[Termination "icychess54 won by resignation"]

1. c4 {[%clk 0:03:00.9]} 1... c5 {[%clk 0:02:57.7]} 2. Nf3 {[%clk 0:03:01.2]}
2... Nc6 {[%clk 0:02:56.3]} 3. Nc3 {[%clk 0:03:01.1]} 3... g6 {[%clk 0:02:55.3]}
4. d4 {[%clk 0:03:01.2]} 4... cxd4 {[%clk 0:02:55]} 5. Nxd4 {[%clk 0:03:02.1]}
5... Bg7 {[%clk 0:02:55.4]} 6. e3 {[%clk 0:03:02.3]} 6... Nf6 {[%clk 0:02:52.8]}
7. Be2 {[%clk 0:03:02.1]} 7... O-O {[%clk 0:02:52.3]} 8. O-O {[%clk 0:03:02.2]}
8... d6 {[%clk 0:02:50.9]} 9. b3 {[%clk 0:03:02.1]} 9... a6 {[%clk 0:02:48.1]}
10. Bb2 {[%clk 0:03:01.3]} 10... e5 {[%clk 0:02:47.1]} 11. Nc2 {[%clk
0:02:55.6]} 11... Qe7 {[%clk 0:02:34.2]} 12. Qd2 {[%clk 0:02:50.1]} 12... Rd8
{[%clk 0:02:30.9]} 13. Rfd1 {[%clk 0:02:44.7]} 13... Bf5 {[%clk 0:02:29.4]} 14.
Ba3 {[%clk 0:02:25.8]} 14... Ne8 {[%clk 0:02:25.7]} 15. Nd5 {[%clk 0:02:16.1]}
15... Qg5 {[%clk 0:02:22.4]} 16. Ncb4 {[%clk 0:01:50.9]} 16... e4 {[%clk
0:02:16]} 17. Bb2 {[%clk 0:01:44.1]} 17... Ne5 {[%clk 0:02:09.2]} 18. Kh1 {[%clk
0:01:23.8]} 18... a5 {[%clk 0:02:03.2]} 19. Nc2 {[%clk 0:01:19.5]} 19... Nxc4
{[%clk 0:02:00.6]} 20. Bxc4 {[%clk 0:00:58.8]} 20... Bxb2 {[%clk 0:01:59.1]} 21.
Nd4 {[%clk 0:00:47]} 21... Bxd4 {[%clk 0:01:55.5]} 22. Qxd4 {[%clk 0:00:45.1]}
22... a4 {[%clk 0:01:38]} 23. Bb5 {[%clk 0:00:40.4]} 23... axb3 {[%clk
0:01:36.2]} 24. Bxe8 {[%clk 0:00:38.8]} 24... Rxe8 {[%clk 0:01:30.7]} 25. Nf6+
{[%clk 0:00:38.6]} 25... Kf8 {[%clk 0:01:27.7]} 26. Nxh7+ {[%clk 0:00:38.3]} 1-0

[Event "*** SCC Grand Prix: Titled Tuesday Blitz"]
[Site "Chess.com"]
[Date "2020.10.06"]
[Round "10"]
[White "ThePatrick27"]
[Black "PowerThinking2650"]
[Result "0-1"]
[WhiteElo "2531"]
[BlackElo "2408"]
[TimeControl "180+1"]
[EndTime "11:55:47 PDT"]
[Termination "PowerThinking2650 won by resignation"]

1. d4 {[%clk 0:03:00.9]} 1... Nf6 {[%clk 0:02:55.2]} 2. Nf3 {[%clk 0:03:01]}
2... g6 {[%clk 0:02:53.6]} 3. c3 {[%clk 0:02:53.2]} 3... Bg7 {[%clk 0:02:53]} 4.
Bg5 {[%clk 0:02:53.2]} 4... O-O {[%clk 0:02:52.4]} 5. Nbd2 {[%clk 0:02:52.8]}
5... d5 {[%clk 0:02:52.4]} 6. e3 {[%clk 0:02:52]} 6... c5 {[%clk 0:02:53]} 7.
Bd3 {[%clk 0:02:50.4]} 7... h6 {[%clk 0:02:53.1]} 8. Bh4 {[%clk 0:02:49.7]} 8...
cxd4 {[%clk 0:02:53.3]} 9. exd4 {[%clk 0:02:49]} 9... Nc6 {[%clk 0:02:53.8]} 10.
h3 {[%clk 0:02:43.1]} 10... Nh5 {[%clk 0:02:51.4]} 11. O-O {[%clk 0:02:20.2]}
11... g5 {[%clk 0:02:36]} 12. Bxg5 {[%clk 0:01:48.1]} 12... hxg5 {[%clk
0:02:32]} 13. Nxg5 {[%clk 0:01:46.7]} 13... Nf4 {[%clk 0:02:29.8]} 14. Bh7+
{[%clk 0:01:44.6]} 14... Kh8 {[%clk 0:02:28.6]} 15. Qf3 {[%clk 0:01:14.4]} 15...
f6 {[%clk 0:02:16.9]} 16. Qxf4 {[%clk 0:00:31.9]} 16... fxg5 {[%clk 0:02:15.7]}
17. Qxg5 {[%clk 0:00:32.2]} 17... Kxh7 {[%clk 0:02:14.1]} 18. Nf3 {[%clk
0:00:32.5]} 18... Bh6 {[%clk 0:02:07.8]} 19. Qh4 {[%clk 0:00:28.6]} 19... Rxf3
{[%clk 0:02:01]} 20. gxf3 {[%clk 0:00:28.2]} 20... Qf8 {[%clk 0:02:01]} 21. Rae1
{[%clk 0:00:20.5]} 21... Bd7 {[%clk 0:01:48.1]} 22. Re3 {[%clk 0:00:16.5]} 22...
Qg7+ {[%clk 0:01:42]} 23. Kh2 {[%clk 0:00:13.2]} 23... Rg8 {[%clk 0:01:41.7]}
0-1